[Event "*** Titled Tuesday Blitz"]
[Site "Chess.com"]
[Date "2021.04.06"]
[Round "5"]
[White "tvjosue"]
[Black "2nd_life"]
[Result "1/2-1/2"]
[WhiteElo "2567"]
[BlackElo "2418"]
[TimeControl "180+1"]
[EndTime "10:57:14 PDT"]
[Termination "Game drawn by agreement"]

1. Nf3 {[%clk 0:03:00.1]} 1... Nf6 {[%clk 0:02:59.5]} 2. g3 {[%clk 0:02:57.7]}
2... d5 {[%clk 0:02:58.9]} 3. Bg2 {[%clk 0:02:55.9]} 3... c6 {[%clk 0:02:59.5]}
4. O-O {[%clk 0:02:56.1]} 4... Bg4 {[%clk 0:02:59.5]} 5. b3 {[%clk 0:02:52.8]}
5... Nbd7 {[%clk 0:02:59]} 6. Bb2 {[%clk 0:02:51.4]} 6... e6 {[%clk 0:02:52]} 7.
c4 {[%clk 0:02:51]} 7... Be7 {[%clk 0:02:43.5]} 8. d3 {[%clk 0:02:50]} 8... O-O
{[%clk 0:02:42.2]} 9. Nbd2 {[%clk 0:02:44]} 9... a5 {[%clk 0:02:37.8]} 10. a3
{[%clk 0:02:43.2]} 10... Re8 {[%clk 0:02:29.3]} 11. Qc2 {[%clk 0:02:41.1]} 11...
Bf8 {[%clk 0:02:25]} 12. e4 {[%clk 0:02:38]} 12... dxe4 {[%clk 0:02:14.9]} 13.
dxe4 {[%clk 0:02:38.9]} 13... e5 {[%clk 0:02:14.6]} 14. Bc3 {[%clk 0:02:36]}
14... Qb6 {[%clk 0:02:05.5]} 15. Qb2 {[%clk 0:02:33.1]} 15... Bxf3 {[%clk
0:02:01.2]} 16. Bxf3 {[%clk 0:02:27]} 16... Bc5 {[%clk 0:01:54.1]} 17. b4 {[%clk
0:02:18.2]} 17... axb4 {[%clk 0:01:53.7]} 18. axb4 {[%clk 0:02:19.1]} 18... Rxa1
{[%clk 0:01:53.2]} 19. Qxa1 {[%clk 0:01:49.5]} 19... Bxb4 {[%clk 0:01:52.3]} 20.
Rb1 {[%clk 0:01:48.9]} 20... Bxc3 {[%clk 0:01:51.9]} 21. Qxc3 {[%clk 0:01:49.7]}
21... Qc7 {[%clk 0:01:50.3]} 22. c5 {[%clk 0:01:50.1]} 22... Rb8 {[%clk
0:01:40.9]} 23. h4 {[%clk 0:01:45.3]} 23... b5 {[%clk 0:01:38]} 24. cxb6 {[%clk
0:01:46.2]} 24... Rxb6 {[%clk 0:01:37.6]} 25. Rc1 {[%clk 0:01:42.4]} 25... Qb8
{[%clk 0:01:31]} 26. Kg2 {[%clk 0:01:35]} 26... h6 {[%clk 0:01:28.3]} 27. g4
{[%clk 0:01:13.2]} 27... g6 {[%clk 0:01:06.2]} 28. Nc4 {[%clk 0:01:00.2]} 28...
Rb3 {[%clk 0:01:04.1]} 29. Qd2 {[%clk 0:01:00]} 29... Qb4 {[%clk 0:00:41.4]} 30.
g5 {[%clk 0:00:48.1]} 30... hxg5 {[%clk 0:00:35.1]} 31. hxg5 {[%clk 0:00:49]}
31... Qxd2 {[%clk 0:00:19.5]} 32. Nxd2 {[%clk 0:00:49.9]} 32... Rd3 {[%clk
0:00:19.2]} 33. gxf6 {[%clk 0:00:49.3]} 33... Rxd2 {[%clk 0:00:18.3]} 34. Rxc6
{[%clk 0:00:49.9]} 34... Kh7 {[%clk 0:00:15.3]} 35. Bg4 {[%clk 0:00:48.1]} 35...
Kh6 {[%clk 0:00:14.3]} 36. Bxd7 {[%clk 0:00:36.4]} 36... Rxd7 {[%clk 0:00:13.9]}
37. Rc5 {[%clk 0:00:36.9]} 37... Kg5 {[%clk 0:00:13.8]} 38. Rxe5+ {[%clk
0:00:36.7]} 38... Kxf6 {[%clk 0:00:14.4]} 39. Rc5 {[%clk 0:00:36.8]} 39... Ke6
{[%clk 0:00:11.9]} 40. Kf3 {[%clk 0:00:36.8]} 40... f5 {[%clk 0:00:11.7]}
1/2-1/2

[Event "*** Titled Tuesday Blitz"]
[Site "Chess.com"]
[Date "2021.04.06"]
[Round "5"]
[White "lacafi"]
[Black "ri4mi"]
[Result "1-0"]
[WhiteElo "2216"]
[BlackElo "2341"]
[TimeControl "180+1"]
[EndTime "10:57:15 PDT"]
[Termination "lacafi won by checkmate"]

1. d4 {[%clk 0:03:00.9]} 1... d5 {[%clk 0:02:59]} 2. Nf3 {[%clk 0:03:00.1]} 2...
Nf6 {[%clk 0:02:57.7]} 3. e3 {[%clk 0:03:00.1]} 3... c6 {[%clk 0:02:54.5]} 4.
Nbd2 {[%clk 0:02:59.8]} 4... Bg4 {[%clk 0:02:52.9]} 5. Be2 {[%clk 0:02:58.5]}
5... e6 {[%clk 0:02:52.8]} 6. b3 {[%clk 0:02:59]} 6... Nbd7 {[%clk 0:02:51.1]}
7. Bb2 {[%clk 0:02:59.5]} 7... Bd6 {[%clk 0:02:51.1]} 8. O-O {[%clk 0:03:00]}
8... O-O {[%clk 0:02:51.4]} 9. c4 {[%clk 0:03:00.6]} 9... c5 {[%clk 0:02:47.3]}
10. cxd5 {[%clk 0:03:00.1]} 10... exd5 {[%clk 0:02:41.4]} 11. dxc5 {[%clk
0:02:55.9]} 11... Nxc5 {[%clk 0:02:37.1]} 12. Rc1 {[%clk 0:02:53.3]} 12... Rc8
{[%clk 0:02:27.8]} 13. Ne5 {[%clk 0:02:50.9]} 13... Bxe2 {[%clk 0:02:12]} 14.
Qxe2 {[%clk 0:02:50.7]} 14... Qe7 {[%clk 0:02:12.4]} 15. Ndf3 {[%clk 0:02:46.8]}
15... Rfd8 {[%clk 0:01:59]} 16. Rfd1 {[%clk 0:02:45.9]} 16... Nce4 {[%clk
0:01:48.6]} 17. h3 {[%clk 0:02:20.1]} 17... h6 {[%clk 0:01:41.6]} 18. Nd3 {[%clk
0:01:57.2]} 18... Bb8 {[%clk 0:01:26.8]} 19. a3 {[%clk 0:01:46.3]} 19... Nd7
{[%clk 0:01:00.9]} 20. Nf4 {[%clk 0:01:40.2]} 20... Bxf4 {[%clk 0:00:58.4]} 21.
exf4 {[%clk 0:01:37.2]} 21... Ndf6 {[%clk 0:00:58.7]} 22. Ne5 {[%clk 0:01:25.6]}
22... Rxc1 {[%clk 0:00:47.8]} 23. Rxc1 {[%clk 0:01:25.1]} 23... d4 {[%clk
0:00:43]} 24. Qc4 {[%clk 0:01:18.9]} 24... d3 {[%clk 0:00:37]} 25. Nxd3 {[%clk
0:00:57.2]} 25... Nd2 {[%clk 0:00:21.7]} 26. Qc3 {[%clk 0:00:55.3]} 26... Qe2
{[%clk 0:00:13.2]} 27. Ne5 {[%clk 0:00:30.2]} 27... Nde4 {[%clk 0:00:12.9]} 28.
Qc7 {[%clk 0:00:22.7]} 28... Qxf2+ {[%clk 0:00:12.5]} 29. Kh1 {[%clk 0:00:22.2]}
29... Rd2 {[%clk 0:00:13]} 30. Qxf7+ {[%clk 0:00:20.4]} 30... Kh7 {[%clk
0:00:12.9]} 31. Qg6+ {[%clk 0:00:18.6]} 31... Kg8 {[%clk 0:00:10.2]} 32. Rc8+
{[%clk 0:00:18.9]} 32... Ne8 {[%clk 0:00:10.2]} 33. Rxe8# {[%clk 0:00:19.1]} 1-0

[Event "*** Titled Tuesday Blitz"]
[Site "Chess.com"]
[Date "2021.04.06"]
[Round "5"]
[White "KNCP_719"]
[Black "Marianov_Podstavnikov"]
[Result "0-1"]
[WhiteElo "2571"]
[BlackElo "2367"]
[TimeControl "180+1"]
[EndTime "10:57:16 PDT"]
[Termination "Marianov_Podstavnikov won by resignation"]

1. e4 {[%clk 0:03:00.9]} 1... e5 {[%clk 0:02:58.4]} 2. Nf3 {[%clk 0:02:51.9]}
2... Nc6 {[%clk 0:02:58.4]} 3. Bb5 {[%clk 0:02:51.5]} 3... a6 {[%clk 0:02:55.7]}
4. Ba4 {[%clk 0:02:51.6]} 4... Nf6 {[%clk 0:02:55.3]} 5. Qe2 {[%clk 0:02:51.9]}
5... b5 {[%clk 0:02:54.5]} 6. Bb3 {[%clk 0:02:51.9]} 6... Bc5 {[%clk 0:02:54.1]}
7. c3 {[%clk 0:02:51.5]} 7... d6 {[%clk 0:02:53.1]} 8. h3 {[%clk 0:02:51.3]}
8... h6 {[%clk 0:02:47.8]} 9. O-O {[%clk 0:02:51.7]} 9... O-O {[%clk 0:02:47.8]}
10. Rd1 {[%clk 0:02:52.4]} 10... Re8 {[%clk 0:02:29.6]} 11. d3 {[%clk
0:02:52.3]} 11... Be6 {[%clk 0:02:26.4]} 12. Bc2 {[%clk 0:02:52.4]} 12... Bb6
{[%clk 0:02:21.7]} 13. Nbd2 {[%clk 0:02:52.8]} 13... d5 {[%clk 0:02:20.7]} 14.
Nf1 {[%clk 0:02:53]} 14... Qd7 {[%clk 0:02:17.7]} 15. Ng3 {[%clk 0:02:53]} 15...
Rad8 {[%clk 0:02:17.1]} 16. a4 {[%clk 0:02:51.5]} 16... b4 {[%clk 0:02:13.1]}
17. Nh4 {[%clk 0:02:39.3]} 17... Bxh3 {[%clk 0:01:41.7]} 18. Nhf5 {[%clk
0:02:06.8]} 18... Bg4 {[%clk 0:01:36.9]} 19. Qf1 {[%clk 0:02:02]} 19... Bxd1
{[%clk 0:01:35.7]} 20. Bxd1 {[%clk 0:02:02.9]} 20... dxe4 {[%clk 0:01:33.7]} 21.
Be3 {[%clk 0:01:56.8]} 21... exd3 {[%clk 0:01:26.5]} 22. Bb3 {[%clk 0:01:52.8]}
22... bxc3 {[%clk 0:01:15.8]} 23. bxc3 {[%clk 0:01:52.7]} 23... Nd5 {[%clk
0:01:02]} 24. Bd2 {[%clk 0:01:42.6]} 24... Nf4 {[%clk 0:00:59.9]} 25. Re1 {[%clk
0:01:37.1]} 25... Ne2+ {[%clk 0:00:57.9]} 26. Kh2 {[%clk 0:01:30.7]} 26... e4
{[%clk 0:00:55.3]} 27. Ne3 {[%clk 0:01:24.4]} 27... Nxg3 {[%clk 0:00:50.4]} 28.
fxg3 {[%clk 0:01:25.3]} 28... Ne5 {[%clk 0:00:50]} 29. Qf4 {[%clk 0:01:21.8]}
29... Bxe3 {[%clk 0:00:46.1]} 30. Bxe3 {[%clk 0:01:22]} 30... Ng4+ {[%clk
0:00:45.4]} 31. Kh1 {[%clk 0:01:22.3]} 31... Nxe3 {[%clk 0:00:45.1]} 32. Qxe3
{[%clk 0:01:23.2]} 32... d2 {[%clk 0:00:44.2]} 33. Rf1 {[%clk 0:01:20.1]} 33...
Re7 {[%clk 0:00:34]} 34. Bc2 {[%clk 0:01:20]} 34... Qg4 {[%clk 0:00:31.4]} 35.
Bd1 {[%clk 0:01:17.8]} 35... Qg5 {[%clk 0:00:30.5]} 36. Rf4 {[%clk 0:01:03.4]}
36... Re5 {[%clk 0:00:24.9]} 37. Kg1 {[%clk 0:00:59.7]} 37... Rd3 {[%clk
0:00:22.2]} 38. Qf2 {[%clk 0:00:35.9]} 38... Qxg3 {[%clk 0:00:21.6]} 39. Rxf7
{[%clk 0:00:30.8]} 39... Qxf2+ {[%clk 0:00:21.4]} 40. Rxf2 {[%clk 0:00:30.7]}
40... e3 {[%clk 0:00:21.2]} 41. Re2 {[%clk 0:00:29]} 41... Rxc3 {[%clk
0:00:21.4]} 0-1

[Event "*** Titled Tuesday Blitz"]
[Site "Chess.com"]
[Date "2021.04.06"]
[Round "5"]
[White "korkmaz16"]
[Black "PchelkinVK"]
[Result "0-1"]
[WhiteElo "2427"]
[BlackElo "2591"]
[TimeControl "180+1"]
[EndTime "10:57:21 PDT"]
[Termination "PchelkinVK won by checkmate"]

1. e4 {[%clk 0:03:00.9]} 1... e6 {[%clk 0:02:23.1]} 2. d4 {[%clk 0:02:59.1]}
2... d5 {[%clk 0:02:23.3]} 3. e5 {[%clk 0:02:59.3]} 3... c5 {[%clk 0:02:23.3]}
4. c3 {[%clk 0:02:59.5]} 4... Nc6 {[%clk 0:02:23.9]} 5. Nf3 {[%clk 0:03:00]}
5... Bd7 {[%clk 0:02:24]} 6. a3 {[%clk 0:02:44.4]} 6... f6 {[%clk 0:02:20.1]} 7.
exf6 {[%clk 0:02:31.8]} 7... Qxf6 {[%clk 0:02:19.4]} 8. Bd3 {[%clk 0:02:29.3]}
8... Bd6 {[%clk 0:02:15.4]} 9. O-O {[%clk 0:02:03.4]} 9... Nge7 {[%clk 0:02:15]}
10. Bg5 {[%clk 0:01:42.5]} 10... Qf7 {[%clk 0:02:13.5]} 11. Bh4 {[%clk
0:01:42.5]} 11... h6 {[%clk 0:01:56.3]} 12. Re1 {[%clk 0:01:25.1]} 12... O-O
{[%clk 0:01:50.1]} 13. dxc5 {[%clk 0:01:24.7]} 13... Bxc5 {[%clk 0:01:48]} 14.
b4 {[%clk 0:01:24.4]} 14... Bb6 {[%clk 0:01:46.5]} 15. b5 {[%clk 0:01:17.1]}
15... Na5 {[%clk 0:01:46.3]} 16. Ne5 {[%clk 0:01:14.5]} 16... Bxf2+ {[%clk
0:01:45.8]} 17. Kh1 {[%clk 0:01:14]} 17... Qe8 {[%clk 0:01:39.2]} 18. Bxe7
{[%clk 0:01:02.5]} 18... Qxe7 {[%clk 0:01:37.1]} 19. Rf1 {[%clk 0:00:51.8]}
19... Qd6 {[%clk 0:00:38.9]} 20. Qh5 {[%clk 0:00:34.3]} 20... Be3 {[%clk
0:00:32.5]} 21. Nd2 {[%clk 0:00:15.5]} 21... Be8 {[%clk 0:00:27.1]} 22. Ng6
{[%clk 0:00:13.6]} 22... Bxd2 {[%clk 0:00:23]} 23. Rxf8+ {[%clk 0:00:12.8]}
23... Qxf8 {[%clk 0:00:22.5]} 24. Qe2 {[%clk 0:00:13.1]} 24... Bxg6 {[%clk
0:00:21.6]} 25. Bxg6 {[%clk 0:00:12.7]} 25... Bxc3 {[%clk 0:00:22]} 26. Qxe6+
{[%clk 0:00:12.7]} 26... Kh8 {[%clk 0:00:21.6]} 27. Rc1 {[%clk 0:00:12.6]} 27...
Qf6 {[%clk 0:00:18.1]} 28. Qg4 {[%clk 0:00:09]} 28... Rf8 {[%clk 0:00:17]} 29.
h3 {[%clk 0:00:08.7]} 29... Be5 {[%clk 0:00:16.9]} 30. Rd1 {[%clk 0:00:07.2]}
30... Qf1+ {[%clk 0:00:16.2]} 31. Rxf1 {[%clk 0:00:06.3]} 31... Rxf1# {[%clk
0:00:16.1]} 0-1

[Event "*** Titled Tuesday Blitz"]
[Site "Chess.com"]
[Date "2021.04.06"]
[Round "5"]
[White "Mikhail_Golubev"]
[Black "PowerThinking2650"]
[Result "1-0"]
[WhiteElo "2565"]
[BlackElo "2401"]
[TimeControl "180+1"]
[EndTime "10:57:22 PDT"]
[Termination "Mikhail_Golubev won by resignation"]

1. e4 {[%clk 0:03:00.9]} 1... e5 {[%clk 0:02:59.9]} 2. Nf3 {[%clk 0:02:58.7]}
2... Nc6 {[%clk 0:03:00.3]} 3. Bb5 {[%clk 0:02:57.7]} 3... a6 {[%clk 0:02:59.3]}
4. Ba4 {[%clk 0:02:57.1]} 4... Nf6 {[%clk 0:02:58.8]} 5. O-O {[%clk 0:02:56.7]}
5... Be7 {[%clk 0:02:58.8]} 6. d3 {[%clk 0:02:56.2]} 6... b5 {[%clk 0:02:58.4]}
7. Bb3 {[%clk 0:02:56.2]} 7... d6 {[%clk 0:02:58.5]} 8. a4 {[%clk 0:02:53.7]}
8... b4 {[%clk 0:02:53.7]} 9. Nbd2 {[%clk 0:02:49.5]} 9... Na5 {[%clk
0:02:50.9]} 10. Ba2 {[%clk 0:02:46.7]} 10... c5 {[%clk 0:02:50.7]} 11. h3 {[%clk
0:02:38]} 11... O-O {[%clk 0:02:48]} 12. Nc4 {[%clk 0:02:32.9]} 12... Nc6 {[%clk
0:02:35.6]} 13. Bg5 {[%clk 0:02:22.4]} 13... Be6 {[%clk 0:02:31.5]} 14. Bxf6
{[%clk 0:02:01.3]} 14... Bxf6 {[%clk 0:02:31.1]} 15. Re1 {[%clk 0:01:55.1]}
15... Nd4 {[%clk 0:02:08.4]} 16. c3 {[%clk 0:01:43.8]} 16... Nxf3+ {[%clk
0:02:00]} 17. Qxf3 {[%clk 0:01:43.5]} 17... a5 {[%clk 0:01:59.2]} 18. Qe2 {[%clk
0:01:29]} 18... Bg5 {[%clk 0:01:55]} 19. Rad1 {[%clk 0:01:25.3]} 19... Rb8
{[%clk 0:01:24.4]} 20. d4 {[%clk 0:01:20.5]} 20... b3 {[%clk 0:01:15.9]} 21. Bb1
{[%clk 0:01:19.2]} 21... Qc7 {[%clk 0:00:44.4]} 22. dxe5 {[%clk 0:01:14.7]}
22... dxe5 {[%clk 0:00:43]} 23. Bd3 {[%clk 0:01:08.1]} 23... Rfd8 {[%clk
0:00:32.6]} 24. Na3 {[%clk 0:01:06.8]} 24... Bd7 {[%clk 0:00:19.8]} 25. Bb5
{[%clk 0:01:04.2]} 25... Bxb5 {[%clk 0:00:16.9]} 26. axb5 {[%clk 0:01:00.2]}
26... g6 {[%clk 0:00:14]} 27. Qc4 {[%clk 0:00:58.6]} 27... Rxd1 {[%clk
0:00:12.5]} 28. Rxd1 {[%clk 0:00:58.6]} 28... Rd8 {[%clk 0:00:12.9]} 29. Qxb3
{[%clk 0:00:58.3]} 29... c4 {[%clk 0:00:09.1]} 30. Rxd8+ {[%clk 0:00:57.2]}
30... Qxd8 {[%clk 0:00:09.3]} 31. Nxc4 {[%clk 0:00:56.5]} 31... Qd3 {[%clk
0:00:08]} 32. b6 {[%clk 0:00:39.5]} 32... Qb1+ {[%clk 0:00:04.1]} 33. Kh2 {[%clk
0:00:38.1]} 33... Bf4+ {[%clk 0:00:04]} 34. g3 {[%clk 0:00:38.2]} 34... Bxg3+
{[%clk 0:00:02.5]} 35. fxg3 {[%clk 0:00:36.9]} 35... Qc1 {[%clk 0:00:02.2]} 1-0

[Event "*** Titled Tuesday Blitz"]
[Site "Chess.com"]
[Date "2021.04.06"]
[Round "5"]
[White "DamianoLew95"]
[Black "ega2006"]
[Result "1-0"]
[WhiteElo "2557"]
[BlackElo "2394"]
[TimeControl "180+1"]
[EndTime "10:57:22 PDT"]
[Termination "DamianoLew95 won on time"]

1. e4 {[%clk 0:03:00.9]} 1... c5 {[%clk 0:02:59.8]} 2. Nf3 {[%clk 0:02:57]} 2...
Nc6 {[%clk 0:02:59.7]} 3. Bb5 {[%clk 0:02:55.6]} 3... g6 {[%clk 0:02:54.9]} 4.
Bxc6 {[%clk 0:02:47.3]} 4... dxc6 {[%clk 0:02:48.3]} 5. O-O {[%clk 0:02:48.2]}
5... Bg7 {[%clk 0:02:46]} 6. d3 {[%clk 0:02:36.1]} 6... Nf6 {[%clk 0:02:45.6]}
7. Be3 {[%clk 0:02:35.6]} 7... Nd7 {[%clk 0:02:43.9]} 8. Nc3 {[%clk 0:02:32.9]}
8... b6 {[%clk 0:02:43.6]} 9. a3 {[%clk 0:02:31.2]} 9... Nf8 {[%clk 0:02:39.1]}
10. Qd2 {[%clk 0:02:29]} 10... h6 {[%clk 0:02:21.9]} 11. b4 {[%clk 0:02:26.7]}
11... e5 {[%clk 0:01:47.5]} 12. bxc5 {[%clk 0:02:21.3]} 12... f5 {[%clk
0:01:45.9]} 13. cxb6 {[%clk 0:02:16.7]} 13... axb6 {[%clk 0:01:45.6]} 14. exf5
{[%clk 0:02:12]} 14... gxf5 {[%clk 0:01:40.3]} 15. Rfe1 {[%clk 0:02:11.7]} 15...
Ne6 {[%clk 0:01:39.3]} 16. d4 {[%clk 0:01:57.7]} 16... e4 {[%clk 0:00:34.4]} 17.
Ne5 {[%clk 0:01:56.5]} 17... c5 {[%clk 0:00:34.8]} 18. Qe2 {[%clk 0:01:51.2]}
18... O-O {[%clk 0:00:28.3]} 19. Nc6 {[%clk 0:01:27.5]} 19... Qd6 {[%clk
0:00:23.7]} 20. Qc4 {[%clk 0:01:11.1]} 20... Qxc6 {[%clk 0:00:19.1]} 21. d5
{[%clk 0:01:11.2]} 21... Qd6 {[%clk 0:00:19.4]} 22. Nb5 {[%clk 0:01:00.9]} 22...
Qe5 {[%clk 0:00:13.2]} 23. dxe6 {[%clk 0:00:57.7]} 23... Bxe6 {[%clk 0:00:14.1]}
24. Qf1 {[%clk 0:00:50.9]} 24... f4 {[%clk 0:00:07.5]} 25. Bd2 {[%clk
0:00:51.5]} 25... Qg5 {[%clk 0:00:06.4]} 26. Rad1 {[%clk 0:00:44.9]} 26... Bg4
{[%clk 0:00:05.5]} 27. Rb1 {[%clk 0:00:40.8]} 27... Rae8 {[%clk 0:00:04.5]} 28.
Nd6 {[%clk 0:00:38.9]} 28... Bf5 {[%clk 0:00:02.9]} 29. Nxe8 {[%clk 0:00:38.7]}
29... Rxe8 {[%clk 0:00:03.8]} 30. g3 {[%clk 0:00:39]} 30... Qg4 {[%clk
0:00:03.4]} 31. Bxf4 {[%clk 0:00:37.7]} 31... Bc3 {[%clk 0:00:02.9]} 32. Re3
{[%clk 0:00:37]} 32... Bd4 {[%clk 0:00:03.2]} 33. Reb3 {[%clk 0:00:35.7]} 33...
e3 {[%clk 0:00:02.8]} 34. Bxe3 {[%clk 0:00:33.4]} 34... Be4 {[%clk 0:00:02.9]}
35. Bxd4 {[%clk 0:00:31.6]} 35... cxd4 {[%clk 0:00:03.8]} 36. f3 {[%clk
0:00:30.9]} 1-0

[Event "*** Titled Tuesday Blitz"]
[Site "Chess.com"]
[Date "2021.04.06"]
[Round "5"]
[White "gxbg2000"]
[Black "DonBroca"]
[Result "0-1"]
[WhiteElo "1999"]
[BlackElo "2209"]
[TimeControl "180+1"]
[EndTime "10:57:22 PDT"]
[Termination "DonBroca won by resignation"]

1. e4 {[%clk 0:03:00.9]} 1... c5 {[%clk 0:02:59.6]} 2. f4 {[%clk 0:02:59.1]}
2... d5 {[%clk 0:02:56.9]} 3. exd5 {[%clk 0:02:56.9]} 3... Qxd5 {[%clk
0:02:57.8]} 4. Nf3 {[%clk 0:02:56.9]} 4... Nf6 {[%clk 0:02:57.3]} 5. Nc3 {[%clk
0:02:56.9]} 5... Qd8 {[%clk 0:02:56.4]} 6. d3 {[%clk 0:02:56.9]} 6... g6 {[%clk
0:02:56]} 7. Be2 {[%clk 0:02:56.9]} 7... Bg7 {[%clk 0:02:56.4]} 8. O-O {[%clk
0:02:56.9]} 8... O-O {[%clk 0:02:57]} 9. Kh1 {[%clk 0:02:56.9]} 9... Nc6 {[%clk
0:02:57.5]} 10. h3 {[%clk 0:02:57.1]} 10... Nh5 {[%clk 0:02:55.6]} 11. Qe1
{[%clk 0:02:56.7]} 11... Nd4 {[%clk 0:02:53.6]} 12. Nxd4 {[%clk 0:02:51.9]}
12... cxd4 {[%clk 0:02:46.3]} 13. Ne4 {[%clk 0:02:49.5]} 13... Nf6 {[%clk
0:02:23.5]} 14. Bf3 {[%clk 0:02:47.2]} 14... Qc7 {[%clk 0:02:14.1]} 15. Rf2
{[%clk 0:02:37]} 15... Nd5 {[%clk 0:02:06.3]} 16. Bd1 {[%clk 0:02:26.8]} 16...
b6 {[%clk 0:01:55.9]} 17. a3 {[%clk 0:02:13.8]} 17... Bb7 {[%clk 0:01:54.5]} 18.
f5 {[%clk 0:02:14.1]} 18... Rac8 {[%clk 0:01:29.1]} 19. Bg5 {[%clk 0:02:02]}
19... h6 {[%clk 0:00:52.7]} 20. Bd2 {[%clk 0:01:58.4]} 20... g5 {[%clk
0:00:46.1]} 21. Rc1 {[%clk 0:01:57.4]} 21... Rfe8 {[%clk 0:00:41]} 22. Bf3
{[%clk 0:01:52.5]} 22... Nf6 {[%clk 0:00:34.8]} 23. Nxf6+ {[%clk 0:01:49.3]}
23... Bxf6 {[%clk 0:00:35.7]} 24. Be4 {[%clk 0:01:46.5]} 24... Be5 {[%clk
0:00:28.4]} 25. Qe2 {[%clk 0:01:42.5]} 25... f6 {[%clk 0:00:22.8]} 26. Qh5
{[%clk 0:01:41.6]} 26... Bxe4 {[%clk 0:00:19.8]} 27. Qg6+ {[%clk 0:01:38.1]}
27... Kh8 {[%clk 0:00:18]} 28. Qxh6+ {[%clk 0:01:37.7]} 28... Kg8 {[%clk
0:00:18.9]} 29. dxe4 {[%clk 0:01:34.7]} 29... e6 {[%clk 0:00:17]} 30. Qg6+
{[%clk 0:01:24.6]} 30... Qg7 {[%clk 0:00:16.4]} 31. Qh5 {[%clk 0:01:14.8]} 31...
exf5 {[%clk 0:00:14.9]} 32. exf5 {[%clk 0:01:10.8]} 32... Re7 {[%clk 0:00:14.4]}
33. Bb4 {[%clk 0:01:05.2]} 33... Rec7 {[%clk 0:00:13.7]} 34. Re2 {[%clk
0:01:00.1]} 34... Qh7 {[%clk 0:00:12.4]} 35. Qxh7+ {[%clk 0:00:57.9]} 35... Kxh7
{[%clk 0:00:12]} 36. c3 {[%clk 0:00:56.1]} 36... a5 {[%clk 0:00:09.3]} 37. cxd4
{[%clk 0:00:44.3]} 37... Rxc1+ {[%clk 0:00:10.2]} 38. Be1 {[%clk 0:00:40.9]}
38... Bxd4 {[%clk 0:00:09.5]} 39. Kh2 {[%clk 0:00:40.2]} 39... Be5+ {[%clk
0:00:09.6]} 40. g3 {[%clk 0:00:40.4]} 40... R1c2 {[%clk 0:00:10]} 41. Rxc2
{[%clk 0:00:39.6]} 41... Rxc2+ {[%clk 0:00:10.9]} 42. Kg1 {[%clk 0:00:40]} 42...
Bxb2 {[%clk 0:00:09.3]} 43. a4 {[%clk 0:00:38.8]} 43... Rc1 {[%clk 0:00:09]} 44.
Kf1 {[%clk 0:00:37.7]} 44... Bc3 {[%clk 0:00:08.8]} 0-1

[Event "*** Titled Tuesday Blitz"]
[Site "Chess.com"]
[Date "2021.04.06"]
[Round "5"]
[White "steka121"]
[Black "XDPS"]
[Result "1-0"]
[WhiteElo "2363"]
[BlackElo "2743"]
[TimeControl "180+1"]
[EndTime "10:57:24 PDT"]
[Termination "steka121 won on time"]

1. e4 {[%clk 0:02:58]} 1... e5 {[%clk 0:02:59.9]} 2. d4 {[%clk 0:02:58.2]} 2...
exd4 {[%clk 0:02:59.6]} 3. Nf3 {[%clk 0:02:58.4]} 3... c5 {[%clk 0:02:44.8]} 4.
c3 {[%clk 0:02:58.3]} 4... d5 {[%clk 0:02:44.9]} 5. exd5 {[%clk 0:02:54.9]} 5...
Qxd5 {[%clk 0:02:44.8]} 6. cxd4 {[%clk 0:02:55.2]} 6... cxd4 {[%clk 0:02:38.7]}
7. Nc3 {[%clk 0:02:53.7]} 7... Qe6+ {[%clk 0:02:11.1]} 8. Ne2 {[%clk 0:02:53.9]}
8... Bb4+ {[%clk 0:01:48.5]} 9. Bd2 {[%clk 0:02:52.9]} 9... Bc5 {[%clk
0:01:46.5]} 10. Qc2 {[%clk 0:02:40.5]} 10... Bb6 {[%clk 0:01:37.1]} 11. O-O-O
{[%clk 0:02:36.9]} 11... Nc6 {[%clk 0:01:24.4]} 12. Nexd4 {[%clk 0:02:25.4]}
12... Qxa2 {[%clk 0:00:51.3]} 13. Bb5 {[%clk 0:02:11.3]} 13... Ne7 {[%clk
0:00:43.3]} 14. Bb4 {[%clk 0:02:03.3]} 14... O-O {[%clk 0:00:13.4]} 15. Bxc6
{[%clk 0:01:49.3]} 15... Nxc6 {[%clk 0:00:11.6]} 16. Nxc6 {[%clk 0:01:45.2]}
16... bxc6 {[%clk 0:00:08.2]} 17. Bxf8 {[%clk 0:01:44.3]} 17... Kxf8 {[%clk
0:00:07.1]} 18. Qxh7 {[%clk 0:01:33.1]} 18... Be6 {[%clk 0:00:05.3]} 19. Nd4
{[%clk 0:01:23.2]} 19... Bd5 {[%clk 0:00:02.7]} 20. Qh8+ {[%clk 0:01:18.2]}
20... Ke7 {[%clk 0:00:03.1]} 21. Rhe1+ {[%clk 0:01:16.3]} 21... Kd7 {[%clk
0:00:03.5]} 22. Qxa8 {[%clk 0:01:07.9]} 22... Bxd4 {[%clk 0:00:02.3]} 23. Qe8+
{[%clk 0:01:03.7]} 23... Kc7 {[%clk 0:00:02.6]} 24. Re7+ {[%clk 0:00:59.5]}
24... Kb6 {[%clk 0:00:02.4]} 25. Qb8+ {[%clk 0:00:38.9]} 25... Kc5 {[%clk
0:00:02.2]} 26. b4+ {[%clk 0:00:36.3]} 26... Kc4 {[%clk 0:00:02.1]} 27. Rxd4+
{[%clk 0:00:36.4]} 27... Kc3 {[%clk 0:00:01]} 28. Re3+ {[%clk 0:00:33.6]} 28...
Kxd4 {[%clk 0:00:01.2]} 29. Qf4+ {[%clk 0:00:19.3]} 1-0